Cogmind - Beta 13 @@@ ROGUE MODE // 2024.05.18 @ 10:46:14 Player: H3-RMN Result: Destroyed by ZQ-TH3(g) with Beamcaster Performance ------------- Evolutions (3) 1500 Regions Visited (16) 3200 Robots Destroyed (228) 1140 Value Destroyed (6650) 6650 Prototype IDs (12) 240 Alien Tech Used (0) 0 Bonus (3748) 3748 TOTAL SCORE: 16478 Bonus ------- High Alert Combat Kills 1852 Follower Combat Kills 496 Entered Garrisons 400 Used RIF Installer 1000 Cogmind --------- Core Integrity 0/700 Matter 215/300 Energy 100/100 System Corruption 0% Temperature Cool (18) Movement Core (200) Ox3 Location -7/Zion Parts ------- > --- POWER (1) -------- (None) > --- PROPULSION (5) --- (None) > --- UTILITY (5) ------ Medium Storage Unit Advanced Hacking Suite > --- WEAPON (2) ------- (None) > --- INVENTORY (10) --- Makeshift Flight Unit Improved Sensor Array Transmission Jammer Improved Utility Shielding Authchip [Processor] Authchip [Weapon] Advanced Trap Extractor (8/8 Blade) Thief Drone Bay (3/3) Plasma Cutter Peak State ------------ > --- POWER ------------ Micro Nuclear Core > --- PROPULSION ------- Improved VTOL Module Improved VTOL Module Improved VTOL Module Improved VTOL Module Improved VTOL Module > --- UTILITY ---------- Medium Storage Unit Improved Utility Shielding Makeshift Hacking Suite Advanced Hacking Suite Relay Coupler [NC] > --- WEAPON ----------- Precision Grenade Launcher Makeshift Spear > --- INVENTORY -------- Cesium-ion Thruster Improved Sensor Array Transport Network Coupler Transmission Jammer Improved Utility Shielding Authchip [Processor] Authchip [Weapon] Advanced Trap Extractor Thief Drone Bay Plasma Cutter [Rating: 51] Favorites ----------- Power Micro Nuclear Core Engine Reinforced Ion Engine Power Core Micro Nuclear Core Propulsion Improved VTOL Module Treads Armored Treads Wheel Wheel Flight Unit Improved VTOL Module Utility Large Storage Unit Device Seismic Detector Storage Large Storage Unit Processor Transport Network Coupler Hackware Advanced Hacking Suite Protection Improved Utility Shielding Weapon Makeshift Spear Energy Gun High-powered Shock Rifle Ballistic Gun Autogun Ballistic Cannon Improved Light Cannon Launcher Improved Grenade Launcher Special Weapon Plasma Cutter Impact Weapon Heavy Mace Slashing Weapon Ripper Piercing Weapon Makeshift Spear Special Melee Weapon Improved Datajack Build | -11 -10 -10 -9 -9 -9 -8 -8 -8 -8 -8 -7 -7 -7 -7 -7 -7 ------- Run | Yrd Mat Min Mat Min Exi Min Mat Gar Mat Gar Fac Was Fac Low Low Zio Slots Evolved 6 | . . . 2 . . . 2 . . . 2 . . . . . Power . | . . . . . . . . . . . . . . . . . Propulsion 3 | . . . 1 . . . 1 . . . 1 . . . . . Utility 3 | . . . 1 . . . 1 . . . 1 . . . . . Weapon . | . . . . . . . . . . . . . . . . . Parts Attached 206 | 8 12 5 15 4 . 1 32 30 29 17 2 . 26 10 8 7 Power 18 | 1 1 1 2 . . . 2 1 1 1 . . 6 . 1 1 Engine 9 | 1 1 1 1 . . . 1 1 1 . . . 2 . . . Core 9 | . . . 1 . . . 1 . . 1 . . 4 . 1 1 Reactor . | . . . . . . . . . . . . . . . . . Propulsion 47 | 3 3 1 6 . . . 13 7 6 5 1 . . 1 . 1 Treads 22 | 1 2 . 5 . . . 7 5 2 . . . . . . . Leg . | . . . . . . . . . . . . . . . . . Wheel 17 | 2 1 1 1 . . . 5 2 4 1 . . . . . . Hover . | . . . . . . . . . . . . . . . . . Flight 8 | . . . . . . . 1 . . 4 1 . . 1 . 1 Utility 64 | 2 5 2 1 2 . 1 5 9 13 4 1 . 8 5 4 2 Device 25 | 1 2 2 1 2 . 1 . 4 4 . . . 2 3 2 1 Storage 8 | 1 2 . . . . . . 2 . 1 . . 2 . . . Processor 5 | . 1 . . . . . . . 2 . 1 . . . 1 . Hackware 10 | . . . . . . . 2 . 2 2 . . 3 1 . . Protection 16 | . . . . . . . 3 3 5 1 . . 1 1 1 1 Artifact . | . . . . . . . . . . . . . . . . . Weapon 77 | 2 3 1 6 2 . . 12 13 9 7 . . 12 4 3 3 Energy Gun 7 | . . . . . . . . 5 2 . . . . . . . Energy Cannon . | . . . . . . . . . . . . . . . . . Ballistic Gun 30 | 2 3 1 6 1 . . 8 2 1 1 . . 2 1 1 1 Ballistic Cannon 4 | . . . . . . . . . 2 1 . . 1 . . . Launcher 13 | . . . . 1 . . 2 2 1 2 . . 2 1 1 1 Special Weapon 5 | . . . . . . . . 2 . 1 . . 2 . . . Impact Weapon 7 | . . . . . . . 2 2 1 1 . . 1 . . . Slashing Weapon 2 | . . . . . . . . . . . . . . . 1 1 Piercing Weapon 1 | . . . . . . . . . . . . . . 1 . . Special Melee Weapon 8 | . . . . . . . . . 2 1 . . 4 1 . . Unidentified Prototypes 7 | . . 1 1 . . . 2 . 1 . . . 2 . . . Parts Lost 37 | . . . 1 . . . 7 4 4 4 . . 3 . 2 12 Power 4 | . . . . . . . 1 . . . . . 1 . . 2 Propulsion 14 | . . . 1 . . . 3 1 1 2 . . . . 1 5 Utility 9 | . . . . . . . 2 1 2 . . . 1 . 1 2 Weapon 10 | . . . . . . . 1 2 1 2 . . 1 . . 3 Highest Loss Streak 12 | . . . 1 . . . 2 4 1 3 . . 1 . 1 12 To Critical Strikes . | . . . . . . . . . . . . . . . . . Average Slot Usage (%) 92 | . 99 100 99 100 100 100 98 96 92 87 89 92 94 100 90 83 Engine 4 | . 14 14 8 . . . 3 9 9 8 . . 3 . . . Core 4 | . . . 2 11 11 11 5 . . . . . 2 7 6 6 Treads 11 | . 14 14 22 22 22 22 21 28 17 6 . . . . . . Wheel 7 | . 14 14 10 11 11 11 13 7 18 17 . . . . . . Flight 12 | . . . . . . . . . . 1 38 38 38 38 32 29 Device 6 | . 7 14 22 22 22 22 5 6 2 . . . 2 4 3 . Storage 9 | . 14 14 11 11 11 11 9 9 9 9 7 7 3 7 7 7 Processor 3 | . 6 . . . . . . . 5 8 4 7 2 . 2 6 Hackware 9 | . . . . . . . 15 10 3 9 23 23 27 23 16 15 Protection 4 | . . . . . . . 5 7 9 8 . . . 2 6 6 Ballistic Gun 9 | . 28 28 21 21 22 22 17 2 . . . . 2 1 4 . Impact Weapon 2 | . . . . . . . . 8 8 8 7 7 1 . . . Piercing Weapon 2 | . . . . . . . . . . . . . . 1 7 6 Naked Turns . | . . . . . . . . . . . . . . . . . Heaviest Build 83 | 12 31 32 36 39 36 36 43 83 82 67 24 24 31 23 24 25 Greatest Support 80 | 20 20 20 40 10 10 10 80 80 24 24 25 25 25 25 25 28 Greatest Overweight (x) 7 | 1 3 2 3 3 3 3 4 4 3 2 7 . 1 . 1 3 Average Overweight (x) 1 | . 1 1 2 3 3 3 1 2 2 1 . . . . . . Largest Inventory Capacity 20 | 8 15 15 15 15 15 15 15 20 20 20 15 15 15 10 10 10 Average Capacity 13 | 7 11 15 15 15 15 15 15 15 20 19 15 15 10 10 10 10 Most Carried 20 | 7 14 15 15 15 15 15 15 20 20 20 13 14 15 10 10 10 Average Carried 13 | 2 9 14 14 15 15 15 14 15 19 19 12 13 9 9 9 9 Final Capacity 20 | 8 15 15 15 15 15 15 15 20 20 15 15 15 10 10 10 10 Final Carried 20 | 5 14 15 15 15 15 15 15 20 20 14 13 14 10 10 10 9 Class Distribution -------------------- 32% | Mutant 30% | Trapper-Sprinter 10% | Scavenger-Mutant 10% | Hacker-Mutant 9% | Trapper-Mutant 5% | Hacker-Sprinter Dominant Class ---------------- Mutant | -10/Materials Mutant | -10/Mines Mutant | -9/Materials Mutant | -9/Mines Mutant | -9/Exiles Mutant | -8/Mines Hacker-Mutant | -8/Materials Scavenger-Mutant | -8/Garrison Trapper-Mutant | -8/Materials Trapper-Mutant | -8/Garrison Hacker-Sprinter | -7/Factory Hacker-Mutant | -7/Waste Hacker-Sprinter | -7/Factory Hacker-Sprinter | -7/Lower Caves Trapper-Sprinter | -7/Lower Caves Trapper-Sprinter | -7/Zion Resources | -11 -10 -10 -9 -9 -9 -8 -8 -8 -8 -8 -7 -7 -7 -7 -7 -7 ----------- Run | Yrd Mat Min Mat Min Exi Min Mat Gar Mat Gar Fac Was Fac Low Low Zio Matter Collected 5270 | 328 470 140 382 168 . 168 1448 581 505 439 . . 293 165 183 . Remotely 322 | 176 146 . . . . . . . . . . . . . . . Salvage Created 8020 | 157 850 304 392 295 . 170 1856 1026 1491 695 . . 278 25 248 233 Parts 451 | 9 64 19 20 26 . 9 117 43 59 34 . . 24 2 9 16 Haulers Intercepted 14 | . 1 . 3 . . . 6 . 3 . . . 1 . . . Recyclers Shooed 1 | . . . . . . 1 . . . . . . . . . . Parts Field Recycled . | . . . . . . . . . . . . . . . . . Retrieved Matter . | . . . . . . . . . . . . . . . . . Parts Self-Destructed 13 | . . . . . . . . . . . . . . 2 11 . Prevented . | . . . . . . . . . . . . . . . . . Kills | -11 -10 -10 -9 -9 -9 -8 -8 -8 -8 -8 -7 -7 -7 -7 -7 -7 ------- Run | Yrd Mat Min Mat Min Exi Min Mat Gar Mat Gar Fac Was Fac Low Low Zio Combat Hostiles Destroyed 174 | . 21 8 4 10 . 4 37 22 26 22 . . 11 . 4 5 Melee 6 | . . . . . . . . 1 3 . . . . . 1 1 Guns 95 | . 21 8 4 6 . 4 31 8 10 1 . . 1 . 1 . Cannons 15 | . . . . . . . . . 7 4 . . 4 . . . AOE 50 | . . . . 4 . . 6 9 3 16 . . 6 . 2 4 Classes Destroyed 19 | 3 5 . 1 . . 1 1 1 . 2 . . . 1 . 4 Worker 8 | 2 2 1 . . . 1 1 . 1 . . . . . . . Builder 2 | . . . . . . . 2 . . . . . . . . . Tunneler 3 | 2 . . . 1 . . . . . . . . . . . . Hauler 14 | . 1 . 3 . . . 6 . 3 . . . 1 . . . Recycler 5 | 1 2 . . 1 . . . . . . . . 1 . . . Minesweeper 1 | . . . . . . . . . . . . . . 1 . . Operator 6 | . 1 . 1 . . . 2 . 2 . . . . . . . Watcher 7 | . 1 . . . . . 2 . 4 . . . . . . . Swarmer 62 | . 9 3 . 6 . 3 12 7 3 7 . . 10 . 2 . Grunt 69 | . 12 5 1 4 . . 17 11 10 8 . . . . 1 . Brawler 4 | . . . . . . . . 1 2 1 . . . . . . Sentry 24 | . . . 3 . . . 7 3 8 2 . . . . 1 . Specialist 3 | . . . . . . . . . . 3 . . . . . . Hunter 6 | . . . . . . 1 1 . 3 . . . 1 . . . Programmer 1 | . . . . . . . . . . 1 . . . . . . Zionite 7 | . . . . . . . . . . . . . . . . 7 Surgeon 1 | . . . . . . . . . . . . . . . . 1 Thug 1 | . . . . . . . . . . . . . . . . 1 Savage 2 | . . . . . . . . . . . . . . . . 2 Butcher 1 | . . . . . . . . . . . . . . . . 1 Mutant 1 | . . . . . . . . . . . . . . . . 1 Best Kill Streak 13 | 3 7 3 3 3 . 3 9 5 4 7 . . 5 1 2 13 Combat Bots Only 7 | . 6 3 1 3 . 2 6 5 4 7 . . 4 . 2 5 Max Kills in Single Turn 3 | 1 1 1 1 2 . 1 2 3 1 3 . . 3 1 1 3 Gunslinging . | . . . . . . . . . . . . . . . . . Exploded 3 | . . . . 2 . . 2 3 1 3 . . 3 . 1 2 Melee 1 | . . . . . . . . 1 1 . . . . . 1 1 Uniques/NPCs Destroyed . | . . . . . . . . . . . . . . . . . Combat | -11 -10 -10 -9 -9 -9 -8 -8 -8 -8 -8 -7 -7 -7 -7 -7 -7 -------- Run | Yrd Mat Min Mat Min Exi Min Mat Gar Mat Gar Fac Was Fac Low Low Zio Hostile Shots Fired 952 | . 62 21 28 15 . 15 207 129 150 104 6 . 57 2 26 130 Missed 318 | . 20 8 7 2 . 2 75 30 39 32 2 . 35 1 8 57 Damage Taken 9083 | . 408 153 311 199 . 106 1710 1230 1762 1137 65 . 287 18 337 1360 Core 1321 | . 77 6 30 25 . 21 138 120 76 118 19 . 92 . 128 471 Absorbed by Shields 446 | . . . . 52 . 40 62 292 . . . . . . . . Redirected to Shielding 74 | . . . . . . . . . 18 . . . . . 56 . Ignored by Resistances 102 | . . . . . . . . . 23 79 . . . . . . Regen/Repaired (Parts) 403 | . . . 116 . . . 127 . 46 . . . 114 . . . Core Remaining (%) 66 | 100 . 66 . . . 81 . . . 17 . . . . . . Volleys Fired 535 | 12 55 18 31 20 . 14 144 47 98 48 . . 28 . 13 7 Largest 2 | 2 2 2 2 2 . 2 2 2 1 1 . . 1 . 1 1 Hottest 65 | 40 40 40 46 46 . 46 50 65 60 39 . . 44 . 36 36 Shots Fired 827 | 24 110 36 62 38 . 28 277 59 97 48 . . 28 . 13 7 Gun 713 | 24 110 36 62 36 . 28 272 53 63 5 . . 11 . 11 2 Cannon 69 | . . . . . . . . . 31 24 . . 14 . . . Launcher 45 | . . . . 2 . . 5 6 3 19 . . 3 . 2 5 Special . | . . . . . . . . . . . . . . . . . Kinetic 711 | 24 110 36 62 36 . 28 272 44 32 29 . . 25 . 11 2 Thermal 2 | . . . . . . . . 2 . . . . . . . . Explosive 45 | . . . . 2 . . 5 6 3 19 . . 3 . 2 5 Electromagnetic 69 | . . . . . . . . 7 62 . . . . . . . Robot Hit Streak 21 | 5 12 6 8 14 . 5 17 12 15 7 . . 21 . 4 11 Robot Miss Streak 6 | 3 3 3 3 3 . 2 4 1 2 1 . . 6 . 2 1 Penetration Max . | . . . . . . . . . . . . . . . . . Secondary Targets 7 | . 3 2 . . . . 1 1 . . . . . . . . Max Gunslinging Chain 1 | . 1 1 . . . . 1 1 . . . . . . . . Shots Hit Robots 615 | 13 77 23 40 23 . 15 172 61 97 39 1 1 25 2 13 13 Core Hits 351 | 7 39 14 14 13 . 8 84 31 42 36 . . 29 1 7 26 Critical Kills 4 | . 1 . . 1 . . 1 . 1 . . . . . . . Critical Parts Destroyed 10 | . . . . . . . . 5 2 3 . . . . . . Critical Strikes 20 | . 1 . . 1 . . 1 5 6 5 . . . . 1 . Destroy 3 | . 1 . . 1 . . 1 . . . . . . . . . Blast 3 | . . . . . . . . . 1 2 . . . . . . Corrupt 1 | . . . . . . . . . 1 . . . . . . . Smash 12 | . . . . . . . . 5 4 3 . . . . . . Impale 1 | . . . . . . . . . . . . . . . 1 . Melee Attacks 151 | . . . . . . . 2 61 32 24 1 1 4 5 11 10 Impact 118 | . . . . . . . 2 61 31 24 . . . . . . Slashing . | . . . . . . . . . . . . . . . . . Piercing 22 | . . . . . . . . . . . . . . 1 11 10 Sneak Attacks 9 | . . . . . . . . . 6 . 1 . 1 1 . . Combat Hostiles . | . . . . . . . . . . . . . . . . . Follow-up Attacks . | . . . . . . . . . . . . . . . . . Damage Inflicted 17164 | 154 1056 275 605 739 . 225 3515 2496 2922 2391 . . 790 52 518 1426 Guns 7823 | 154 1056 275 605 397 . 225 2911 637 1156 46 . . 165 . 146 50 Cannons 1130 | . . . . . . . . . 501 395 . . 234 . . . Explosions 5199 | . . . . 342 . . 604 682 180 1592 . . 391 . 148 1260 Melee 3012 | . . . . . . . . 1177 1085 358 . . . 52 224 116 Ramming . | . . . . . . . . . . . . . . . . . Kinetic 7746 | 154 1056 275 605 397 . 225 2911 565 522 441 . . 399 . 146 50 Thermal 77 | . . . . 46 . . . . 31 . . . . . . . Explosive 5122 | . . . . 296 . . 604 682 149 1592 . . 391 . 148 1260 Electromagnetic 1207 | . . . . . . . . 72 1135 . . . . . . . Impact 2620 | . . . . . . . . 1177 1085 358 . . . . . . Slashing . | . . . . . . . . . . . . . . . . . Piercing 392 | . . . . . . . . . . . . . . 52 224 116 Highest Corruption 9 | . . . . . . . 1 2 2 2 . 9 9 . . . Average Corruption 1 | . . . . . . . 1 1 2 2 . 9 5 . . . Corruption Purged 9 | . . . . . . . . . . . . . 9 . . . Corruption Blocked . | . . . . . . . . . . . . . . . . . Effects 70 | . . . . . . . 10 20 20 11 . 1 8 . . . Message Errors 12 | . . . . . . . . 5 3 3 . . 1 . . . Matter Fused 18 | . . . . . . . 5 2 6 3 . 1 1 . . . Heat Flow Errors 13 | . . . . . . . 2 1 5 1 . . 4 . . . Energy Discharges 8 | . . . . . . . . 3 3 1 . . 1 . . . Parts Rejected 1 | . . . . . . . . 1 . . . . . . . . Data Loss (minor) 10 | . . . . . . . 1 4 2 2 . . 1 . . . Data Loss (major) 4 | . . . . . . . 1 2 . 1 . . . . . . Misfires 1 | . . . . . . . . 1 . . . . . . . . Weapon Failures 3 | . . . . . . . 1 1 1 . . . . . . . Overload Shots . | . . . . . . . . . . . . . . . . . Overflow Damage 1053 | . . . . 56 . . 61 359 246 249 . . 8 . 58 16 Projectiles . | . . . . . . . . . . . . . . . . . Explosions 205 | . . . . 56 . . 61 38 . 12 . . 8 . 14 16 Melee 848 | . . . . . . . . 321 246 237 . . . . 44 . Knockbacks 35 | . . . . . . . . 2 16 7 . . 10 . . . Impact 10 | . . . . . . . . 2 4 4 . . . . . . Kinetic 23 | . . . . . . . . . 11 2 . . 10 . . . Secondary 2 | . . . . . . . . . 1 1 . . . . . . Self-Inflicted Damage 689 | . . . . 101 . . 14 133 62 211 . . . . 68 100 Shots 22 | . . . . 3 . . 1 2 2 8 . . . . 2 4 Rammed . | . . . . . . . . . . . . . . . . . Targets Rammed . | . . . . . . . . . . . . . . . . . Kicked . | . . . . . . . . . . . . . . . . . Crushed . | . . . . . . . . . . . . . . . . . Highest Temperature 323 | . . 12 16 23 . 8 197 251 323 267 . . 196 4 26 49 Average Temperature 50 | . . 6 4 6 . 3 29 63 92 49 . . 47 2 4 13 Received Heat Transfer 3053 | . 144 93 102 40 . . 669 522 693 369 18 . 24 . 27 352 Siege Activations . | . . . . . . . . . . . . . . . . . Robots Corrupted 4 | . . . . . . . . . 4 . . . . . . . Combat Hostiles 3 | . . . . . . . . . 3 . . . . . . . Parts Fried 22 | . . . . . . . . 3 16 3 . . . . . . Impact Corruptions 28 | . . . . . . . . 9 11 8 . . . . . . Robots Melted . | . . . . . . . . . . . . . . . . . Combat Hostiles . | . . . . . . . . . . . . . . . . . Parts Melted 2 | . . . . 1 . . . . . . . . . . . 1 Heat Transferred 100 | . . . . 50 . . . . 50 . . . . . . . Parts Sabotaged . | . . . . . . . . . . . . . . . . . Parts Stolen . | . . . . . . . . . . . . . . . . . Parts Stripped . | . . . . . . . . . . . . . . . . . Power Chain Reactions 1 | . . . . . . . . . 1 . . . . . . . Alert | -11 -10 -10 -9 -9 -9 -8 -8 -8 -8 -8 -7 -7 -7 -7 -7 -7 ------- Run | Yrd Mat Min Mat Min Exi Min Mat Gar Mat Gar Fac Was Fac Low Low Zio Peak Influence 1630 | 25 445 244 245 216 . 75 1028 1630 1175 1373 900 345 284 . . . Initial 794 | . 16 109 26 24 . . 19 668 794 754 720 315 241 . . . Average 528 | 8 199 144 128 95 . 39 532 1140 966 1112 799 332 181 . . . Maximum Alert Level 5 | . 2 1 1 1 . . 3 5 4 4 3 1 1 . . . Low Security (%) 38 | 100 46 73 84 89 . 100 22 . . . . . 46 . . . Level 1 16 | . 51 26 15 10 . . 16 . . . . 100 53 . . . Level 2 3 | . 2 . . . . . 20 2 . . . . . . . . Level 3 28 | . . . . . . . 40 54 80 39 100 . . . . . Level 4 10 | . . . . . . . . 22 19 60 . . . . . . Level 5 3 | . . . . . . . . 20 . . . . . . . . High Security . | . . . . . . . . . . . . . . . . . Max Security . | . . . . . . . . . . . . . . . . . Squads Dispatched 33 | . 6 2 2 . . . 9 . 7 . 2 . 5 . . . Investigation 16 | . 5 1 1 . . . 2 . 3 . 1 . 3 . . . Extermination . | . . . . . . . . . . . . . . . . . Reinforcement 10 | . 1 . 1 . . . 3 . 2 . 1 . 2 . . . Assault 1 | . . 1 . . . . . . . . . . . . . . Garrison 6 | . . . . . . . 4 . 2 . . . . . . . Intercept . | . . . . . . . . . . . . . . . . . Searches Triggered . | . . . . . . . . . . . . . . . . . Construction Impeded 2 | . . . . . . . 1 . . . . . 1 . . . Haulers Reinforced . | . . . . . . . . . . . . . . . . . Active Scanning Responses . | . . . . . . . . . . . . . . . . . Cargo Convoy Interrupts . | . . . . . . . . . . . . . . . . . Stealth | -11 -10 -10 -9 -9 -9 -8 -8 -8 -8 -8 -7 -7 -7 -7 -7 -7 --------- Run | Yrd Mat Min Mat Min Exi Min Mat Gar Mat Gar Fac Was Fac Low Low Zio Distress Signals 9 | . 1 . 1 . . . 3 . 3 . . . 1 . . . Communications Jammed . | . . . . . . . . . . . . . . . . . Distress Signals . | . . . . . . . . . . . . . . . . . Times Spotted 319 | . 31 11 10 12 . 5 59 27 40 22 10 4 25 2 21 40 Peak Tracking Total 25 | . 7 4 5 3 . 2 10 6 5 5 6 4 6 1 7 25 Tactical Retreats 29 | . . . . . . 1 9 3 4 1 1 . 3 . 5 2 Traps | -11 -10 -10 -9 -9 -9 -8 -8 -8 -8 -8 -7 -7 -7 -7 -7 -7 ------- Run | Yrd Mat Min Mat Min Exi Min Mat Gar Mat Gar Fac Was Fac Low Low Zio Traps Triggered 12 | . . . . . . . 3 4 3 . 1 . 1 . . . Indirectly . | . . . . . . . . . . . . . . . . . Trap Hack Attempts 67 | . . . . . . . . . 65 . . . 2 . . . Triggered . | . . . . . . . . . . . . . . . . . Disarmed . | . . . . . . . . . . . . . . . . . Reprogrammed 11 | . 6 . . . . . . . 4 . . . 1 . . . Reused . | . . . . . . . . . . . . . . . . . Traps Extracted 8 | . 4 . . . . . . . 4 . . . . . . . Installed . | . . . . . . . . . . . . . . . . . Triggered 1 | . . . . . . . . . . . . . . . 1 . Most Traps Carried 8 | . 4 4 4 4 4 4 4 4 8 8 8 8 8 8 8 8 Machines | -11 -10 -10 -9 -9 -9 -8 -8 -8 -8 -8 -7 -7 -7 -7 -7 -7 ---------- Run | Yrd Mat Min Mat Min Exi Min Mat Gar Mat Gar Fac Was Fac Low Low Zio Machines Disabled 11 | . . . . 2 . . 3 3 2 . . . . . 1 . Max in Single Turn 1 | . . . . 1 . . 1 1 1 . . . . . 1 . Garrison Access 1 | . . . . . . . . . . . . . 1 . . . Garrison Relay 3 | . . . . . . . . 2 . 1 . . . . . . Phase Generator 1 | . . . . . . . . 1 . . . . . . . . Machines Repaired . | . . . . . . . . . . . . . . . . . Machines Dismantled 4 | . . . . . . . . 2 . 1 . . . 1 . . Machines Sabotaged . | . . . . . . . . . . . . . . . . . Overloaded Fab Kills . | . . . . . . . . . . . . . . . . . Hacking | -11 -10 -10 -9 -9 -9 -8 -8 -8 -8 -8 -7 -7 -7 -7 -7 -7 --------- Run | Yrd Mat Min Mat Min Exi Min Mat Gar Mat Gar Fac Was Fac Low Low Zio Machines Accessed 63 | . 7 2 10 . 1 . 7 2 15 1 1 . 17 . . . Terminals 37 | . 5 . 7 . . . 3 2 9 1 . . 10 . . . Fabricators 2 | . . . . . . . . . . . . . 2 . . . Repair Stations 6 | . . . 2 . . . 1 . 1 . 1 . 1 . . . Recycling Units 7 | . 2 . 1 . . . 1 . 2 . . . 1 . . . Scanalyzers 5 | . . . . . . . 1 . 2 . . . 2 . . . Garrison Access 3 | . . . . . . . 1 . 1 . . . 1 . . . Total Hacks 231 | . 26 2 38 . 1 . 37 3 51 2 4 . 67 . . . Successful 145 | . 10 2 23 . 1 . 28 2 28 1 . . 50 . . . Failed 83 | . 15 . 14 . . . 9 1 22 1 4 . 17 . . . Catastrophic 11 | . 5 . 1 . . . 1 . 3 . . . 1 . . . Database Lockouts 3 | . 1 . 1 . . . . . 1 . . . . . . . Manual 107 | . 19 . 21 . . . 14 1 28 . . . 24 . . . Terminals 143 | . 20 . 31 . . . 18 3 31 2 . . 38 . . . Fabricators 5 | . . . . . . . . . . . . . 5 . . . Repair Stations 19 | . . . 5 . . . 3 . 2 . 4 . 5 . . . Recycling Units 21 | . 6 . 2 . . . 2 . 6 . . . 5 . . . Scanalyzers 36 | . . . . . . . 13 . 11 . . . 12 . . . Garrison Access 4 | . . . . . . . 1 . 1 . . . 2 . . . Terminal Hacks 55 | . 6 2 11 . 1 . 6 2 9 1 . . 17 . . . Record 1 | . . . . . 1 . . . . . . . . . . . Part Schematic 6 | . . . 1 . . . 1 . 1 . . . 3 . . . Robot Schematic 1 | . 1 . . . . . . . . . . . . . . . Robot Analysis 6 | . 2 . 1 . . . 1 . . . . . 2 . . . Prototype ID Bank 3 | . . . 2 . . . . . . . . . 1 . . . Open Door 2 | . . 2 . . . . . . . . . . . . . . Open DSF 1 | . . . . . . . . . . . . . 1 . . . Branch Access Points 1 | . . . . . . . . . . . . . 1 . . . Emergency Access Points 5 | . . . 1 . . . 2 1 . 1 . . . . . . Terminal Index 2 | . . . 1 . . . . . . . . . 1 . . . Unreport Threat 4 | . . . 1 . . . . . 2 . . . 1 . . . Locate Traps 6 | . 2 . 1 . . . . . 2 . . . 1 . . . Reprogram Traps 1 | . 1 . . . . . . . . . . . . . . . Hauler Manifests 4 | . . . 1 . . . 1 . 1 . . . 1 . . . Registered Components 1 | . . . . . . . . . . . . . 1 . . . Zone Layout 10 | . . . 2 . . . 1 . 3 . . . 4 . . . Garrison Registry 1 | . . . . . . . . 1 . . . . . . . . Fabricator Hacks 3 | . . . . . . . . . . . . . 3 . . . Network Status 1 | . . . . . . . . . . . . . 1 . . . Load Schematic 2 | . . . . . . . . . . . . . 2 . . . Repair Station Hacks 11 | . . . 4 . . . 2 . 2 . . . 3 . . . Scan Component 5 | . . . 2 . . . 1 . 1 . . . 1 . . . Repair 5 | . . . 2 . . . 1 . 1 . . . 1 . . . Refit 1 | . . . . . . . . . . . . . 1 . . . Recycling Unit Hacks 10 | . 3 . 1 . . . 1 . 2 . . . 3 . . . Process 1 | . . . . . . . . . . . . . 1 . . . Report Inventory 6 | . 2 . 1 . . . 1 . 1 . . . 1 . . . Retrieve Matter 1 | . . . . . . . . . . . . . 1 . . . Retrieve Components 2 | . 1 . . . . . . . 1 . . . . . . . Scanalyzer 35 | . . . . . . . 13 . 10 . . . 12 . . . Insert Component 16 | . . . . . . . 6 . 5 . . . 5 . . . Analyze 19 | . . . . . . . 7 . 5 . . . 7 . . . Garrison Access Hacks 4 | . . . . . . . 1 . 1 . . . 2 . . . Unlock Access 2 | . . . . . . . 1 . 1 . . . . . . . Seal Access 1 | . . . . . . . . . . . . . 1 . . . Coupler Status 1 | . . . . . . . . . . . . . 1 . . . Unauthorized Hacks 27 | . 1 . 7 . . . 5 . 4 . . . 10 . . . Terminals 19 | . . . 6 . . . 4 . 2 . . . 7 . . . Track 5 | . . . 2 . . . 1 . . . . . 2 . . . Assimilate 4 | . . . . . . . 2 . . . . . 2 . . . Botnet 8 | . . . 3 . . . 1 . 2 . . . 2 . . . Operators 2 | . . . 1 . . . . . . . . . 1 . . . Fabricators 2 | . . . . . . . . . . . . . 2 . . . Recompile 2 | . . . . . . . . . . . . . 2 . . . Repair Stations . | . . . . . . . . . . . . . . . . . Recycling Units 6 | . 1 . 1 . . . 1 . 2 . . . 1 . . . Mask 3 | . . . . . . . . . 2 . . . 1 . . . Tunnel 3 | . 1 . 1 . . . 1 . . . . . . . . . Scanalyzers . | . . . . . . . . . . . . . . . . . Garrison Access . | . . . . . . . . . . . . . . . . . Data Cores Recovered 1 | . . . . . . . 1 . . . . . . . . . Used . | . . . . . . . . . . . . . . . . . Hacking Detections 52 | . 6 . 9 . . . 5 1 14 1 1 . 15 . . . Full Trace Events 9 | . 5 . 1 . . . . . 1 . 1 . 1 . . . Feedback Events . | . . . . . . . . . . . . . . . . . Feedback Blocked . | . . . . . . . . . . . . . . . . . Robot Schematics Acquired 1 | . 1 . . . . . . . . . . . . . . . Robots Built . | . . . . . . . . . . . . . . . . . Authchips . | . . . . . . . . . . . . . . . . . Time . | . . . . . . . . . . . . . . . . . Total Robot Build Rating . | . . . . . . . . . . . . . . . . . Part Schematics Acquired 22 | . . . 1 . . . 7 . 6 . . . 8 . . . Parts Built . | . . . . . . . . . . . . . . . . . Authchips . | . . . . . . . . . . . . . . . . . Time . | . . . . . . . . . . . . . . . . . Total Part Build Rating . | . . . . . . . . . . . . . . . . . Parts Repaired 5 | . . . 2 . . . 1 . 1 . . . 1 . . . Time 162 | . . . 48 . . . 38 . 38 . . . 38 . . . Parts Recycled . | . . . . . . . . . . . . . . . . . Recycled Matter 129 | . . . . . . . . . . . . . 129 . . . Retrieved Matter 129 | . . . . . . . . . . . . . 129 . . . Retrieved Components 19 | . 10 . . . . . . . 9 . . . . . . . Parts Scanalyzed 16 | . . . . . . . 6 . 5 . . . 5 . . . Part Schematics Acquired 16 | . . . . . . . 6 . 5 . . . 5 . . . Parts Damaged 1 | . . . . . . . . . 1 . . . . . . . Bothacking | -11 -10 -10 -9 -9 -9 -8 -8 -8 -8 -8 -7 -7 -7 -7 -7 -7 ------------ Run | Yrd Mat Min Mat Min Exi Min Mat Gar Mat Gar Fac Was Fac Low Low Zio Used RIF Installer 2 | . . . . . . . . 1 . 1 . . . . . . Watcher Feeds 1 | . . . . . . . . . . 1 . . . . . . Robots Hacked 6 | . . . . . . . . . 1 . 1 1 2 1 . . Non-combat 4 | . . . . . . . . . 1 . 1 . 2 . . . Combat 2 | . . . . . . . . . . . . 1 . 1 . . Robot Hacks Applied 7 | . . . . . . . . . 1 . 1 1 3 1 . . parse_system 3 | . . . . . . . . . 1 . . . 1 1 . . find_chute 1 | . . . . . . . . . . . 1 . . . . . block_reporting 1 | . . . . . . . . . . . . . 1 . . . ignore_targets 1 | . . . . . . . . . . . . 1 . . . . formatsys_low 1 | . . . . . . . . . . . . . 1 . . . Relay Couplers Released 15 | . . . . . . . . 7 . 8 . . . . . . Machine Destruction 11 | . . . . . . . . 7 . 4 . . . . . . Programmers 4 | . . . . . . . . . . 4 . . . . . . Attached 1 | . . . . . . . . . . 1 . . . . . . Fabnet Peak Effective % . | . . . . . . . . . . . . . . . . . Robots Rewired 6 | . . . . . . . . 2 . . . . . . 4 . Allies Hacked . | . . . . . . . . . . . . . . . . . Hacks Repelled . | . . . . . . . . . . . . . . . . . Allies | -11 -10 -10 -9 -9 -9 -8 -8 -8 -8 -8 -7 -7 -7 -7 -7 -7 -------- Run | Yrd Mat Min Mat Min Exi Min Mat Gar Mat Gar Fac Was Fac Low Low Zio Total Allies 22 | . . 1 . . . . . 2 . . . . 15 . 4 . Largest Group 5 | . . 1 1 . . . . 2 . . . . 5 . 4 . Highest-Rated Group 122 | . . 31 31 . . . . 51 . . . . 122 . 91 . Highest-Rated Ally 31 | . . 31 31 . . . . 31 . . . . 31 . 31 . Total Orders 7 | . . . . . . . . . . . . . . 2 3 2 EXPLORE 1 | . . . . . . . . . . . . . . . 1 . RETURN 6 | . . . . . . . . . . . . . . 2 2 2 Ally Attacks 135 | . . 12 17 . . . . 19 . . . . 14 42 29 2 Total Damage 1516 | . . 214 209 . . . . 348 . . . . 221 220 304 . Kills 20 | . . 4 5 . . . . 5 . . . . 1 2 3 . Allies Corrupted . | . . . . . . . . . . . . . . . . . Allies Melted . | . . . . . . . . . . . . . . . . . Intel | -11 -10 -10 -9 -9 -9 -8 -8 -8 -8 -8 -7 -7 -7 -7 -7 -7 ------- Run | Yrd Mat Min Mat Min Exi Min Mat Gar Mat Gar Fac Was Fac Low Low Zio Robot Analysis Total 6 | . 2 . 1 . . . 1 . . . . . 2 . . . Derelict Logs Recovered 5 | . . 1 . 2 . . . . . . . . . 1 1 . Drone Launches 24 | . . . . . . . . . . . . . . 13 8 3 Drone Recoveries 24 | . . . . . . . . . . . . . . 13 8 3 Exploration | -11 -10 -10 -9 -9 -9 -8 -8 -8 -8 -8 -7 -7 -7 -7 -7 -7 ------------- Run | Yrd Mat Min Mat Min Exi Min Mat Gar Mat Gar Fac Was Fac Low Low Zio Turns Passed 16755 | 149 1312 1062 724 723 362 628 1434 1620 1509 697 89 35 734 157 807 4713 Spaces Moved 8588 | 79 620 510 402 520 290 473 720 825 797 414 175 85 1181 317 790 390 Core 7 | 4 . . . . . . . . . . 1 . 1 . . 1 Treads 926 | 35 121 317 95 . . . 131 227 . . . . . . . . Legs . | . . . . . . . . . . . . . . . . . Wheels 4710 | 40 499 193 307 520 290 473 589 598 797 404 . . . . . . Hover . | . . . . . . . . . . . . . . . . . Flight 2945 | . . . . . . . . . . 10 174 85 1180 317 790 389 Fastest Speed 23 | 50 95 110 125 125 125 125 95 120 120 96 23 23 23 23 23 26 Average Speed 97 | 122 120 190 136 125 125 125 122 146 127 119 32 23 23 23 32 28 Slowest Speed 400 | 160 240 240 250 125 125 125 250 170 135 120 400 23 100 23 96 245 Overloaded Moves . | . . . . . . . . . . . . . . . . . Propulsion Burnouts . | . . . . . . . . . . . . . . . . . Robots Hopped 14 | . . . . . . . . . . . 1 2 8 . . 3 Cave-ins Triggered . | . . . . . . . . . . . . . . . . . Exploration Rate (%) 60 | 5 80 92 40 87 70 94 53 76 78 56 7 87 40 49 72 48 Regions Visited 16 Branch Regions 7 Pre-discovered Areas 6 | . 1 . 1 3 . . 1 . . . . . . . . . Known Exits Taken 4 | . . . . . . 1 1 . 1 . . . 1 . . . Unknown Exits Taken 8 | 1 1 1 1 1 1 . . . . . . . . 1 1 . Scrap Searched 10 | . . 1 . 1 . 1 . . . . . . . 2 3 2 Spaces Dug 123 | . . . . 12 . . 21 15 17 45 . . . . 13 . Terrain Destroyed 297 | . . . . 25 . . 36 84 34 82 . . 15 . 13 8 Melee 22 | . . . . . . . 2 10 4 4 . . . . 2 . Projectile 1 | . . . . . . . . . 1 . . . . . . . AOE 274 | . . . . 25 . . 34 74 29 78 . . 15 . 11 8 Terrain Rammed . | . . . . . . . . . . . . . . . . . Walls Destroyed . | . . . . . . . . . . . . . . . . . Machines Disabled . | . . . . . . . . . . . . . . . . . Actions | -11 -10 -10 -9 -9 -9 -8 -8 -8 -8 -8 -7 -7 -7 -7 -7 -7 --------- Run | Yrd Mat Min Mat Min Exi Min Mat Gar Mat Gar Fac Was Fac Low Low Zio Total 16010 | 106 1077 568 545 561 289 488 1054 1071 1140 524 209 97 1602 391 1314 4974 Wait 6163 | . 370 18 62 16 . . 127 51 86 . 31 13 329 51 457 4552 Move 8548 | 78 619 509 401 519 289 472 720 824 797 413 173 81 1164 316 789 384 Hop 13 | . . . . . . . . . . . 1 1 8 . . 3 Pick Up 108 | 6 11 8 15 . . . 15 7 14 8 1 1 16 1 2 3 Fast Attach 61 | 7 1 1 2 1 . . 6 12 8 1 . . 14 2 1 5 Attach 45 | . 1 . 4 . . . 8 3 6 9 2 . 8 . 2 2 Detach 11 | . . . . . . . . 1 . 1 . . 5 1 1 2 Swap 100 | 1 10 4 9 3 . 1 18 15 15 7 . . 4 8 5 . Drop 134 | 2 10 10 21 2 . 1 14 13 19 10 . . 19 4 3 6 Fire 535 | 12 55 18 31 20 . 14 144 47 98 48 . . 28 . 13 7 Melee 151 | . . . . . . . 2 61 32 24 1 1 4 5 11 10 Ram . | . . . . . . . . . . . . . . . . . Kick . | . . . . . . . . . . . . . . . . . Crush . | . . . . . . . . . . . . . . . . . Escape Stasis 16 | . . . . . . . . 16 . . . . . . . . Rewire 45 | . . . . . . . . 15 . . . . . . 30 . Trap 67 | . . . . . . . . . 65 . . . 2 . . . Miscellaneous 13 | . . . . . . . . 6 . 3 . . 1 3 . . Route ------- -11/Scrapyard -10/Materials (discovered 4 exits: *Mat x3 / *Min) -10/Mines (discovered 2 exits: *Mat x2) -9/Materials (discovered 3 exits: *Mat x2 / [*Min]) -9/Mines (discovered 2 exits: *Mat / *Exi) -9/Exiles (discovered 2 exits: [*Min x2]) -8/Mines (discovered 2 exits: *Mat x2) -8/Materials (discovered 2 exits: *Fac / Gar) -8/Garrison (discovered 3 exits: *Mat x3) -8/Materials (discovered 3 exits: *Fac x2 / Gar) -8/Garrison (discovered 3 exits: *Fac x2 / [*Mat]) -7/Factory -7/Waste -7/Factory (discovered 3 exits: Sto / *Low x2) -7/Lower Caves -7/Lower Caves (discovered 2 exits: [*Fac] / *Zio) -7/Zion (discovered 1 exit: [*Pro]) History --------- Turn | Location | Event 19 | -11/Scrapyard | Discovered new exit (range 15) 150 | -11/Scrapyard | Entered Materials 308 | -10/Materials | Build established: Mutant 517 | -10/Materials | Discovered new exit (range 3) 651 | -10/Materials | Discovered new exit (range 15) 819 | -10/Materials | Discovered new exit (range 6) 1271 | -10/Materials | Discovered new exit (range 7) 1272 | -10/Materials | Central database locked down 1462 | -10/Materials | Entered Mines 1793 | -10/Mines | Found the Drone Emporium 1819 | -10/Mines | Found Prototype Device 1819 | -10/Mines | Identified Thief Drone Bay 1931 | -10/Mines | Met a Derelict testing a Signal Generator 1932 | -10/Mines | Discovered new exit (range 5) 2084 | -10/Mines | Learned location of 1 exit from Materials 2123 | -10/Mines | Met a Derelict shopkeep closing up shop 2412 | -10/Mines | Discovered new exit (range 15) 2524 | -10/Mines | Entered Materials 2524 | -9/Materials | Accompanied by 1 ally 2524 | -9/Materials | Evolved 2 slots: Propulsion x1, Utility x1 2525 | -9/Materials | Identified exit to Materials 2653 | -9/Materials | Repaired Trap Extractor 2769 | -9/Materials | Central database locked down 2822 | -9/Materials | Discovered exit to Materials (range 16) 2998 | -9/Materials | Repaired Autogun 3059 | -9/Materials | Discovered new exit (range 10) 3248 | -9/Materials | Entered Mines 3261 | -9/Mines | Met a Derelict bent on vengeance 3590 | -9/Mines | Learned location of Zion (-7) 3623 | -9/Mines | Discovered exit to Materials (range 4) 3892 | -9/Mines | Received a Rocket Launcher from a helpful Derelict 3898 | -9/Mines | Deemed a non-threat by the Exiles lab entrance 3898 | -9/Mines | Discovered new exit (range 5) 3929 | -9/Mines | Learned location of Storage (-7) 3971 | -9/Mines | Entered Exiles 3971 | -9/Exiles | Found Exiles lab abandoned 3990 | -9/Exiles | Discovered new exit (range 15) 4314 | -9/Exiles | Discovered new exit (range 14) 4333 | -9/Exiles | Entered Mines 4473 | -8/Mines | Discovered exit to Materials (range 8) 4877 | -8/Mines | Discovered exit to Materials (range 7) 4961 | -8/Mines | Entered Materials 4961 | -8/Materials | Evolved 2 slots: Propulsion x1, Utility x1 5091 | -8/Materials | Repaired Arm. Treads 5457 | -8/Materials | Garrison activated, responded to threat 5616 | -8/Materials | Build established: Hacker-Mutant 5638 | -8/Materials | Discovered new exit (range 14) 6037 | -8/Materials | Garrison activated, responded to threat 6395 | -8/Materials | Identified exit to Garrison 6395 | -8/Materials | Entered Garrison 6521 | -8/Garrison | Triggered checkpoint 6639 | -8/Garrison | Garrison Relay disabled 6821 | -8/Garrison | Triggered checkpoint 6853 | -8/Garrison | Triggered checkpoint 6936 | -8/Garrison | Lost 4 parts (1n1u2w) 7061 | -8/Garrison | Triggered checkpoint 7196 | -8/Garrison | Garrison Relay disabled 7272 | -8/Garrison | Build established: Scavenger-Mutant 7386 | -8/Garrison | Installed Relay Interface Framework 7425 | -8/Garrison | Triggered checkpoint 7453 | -8/Garrison | Discovered new exit (range 14) 7619 | -8/Garrison | Spotted B-75 Beast 7639 | -8/Garrison | Phase Generator disabled 7647 | -8/Garrison | Discovered new exit (range 9) 7675 | -8/Garrison | Triggered checkpoint 7680 | -8/Garrison | Discovered new exit (range 74) 7680 | -8/Garrison | Discovered new exit (range 52) 7680 | -8/Garrison | Discovered new exit (range 7) 8015 | -8/Garrison | Entered Materials 8117 | -8/Materials | Core integrity fell below 50% 8927 | -8/Materials | Discovered new exit (range 11) 9032 | -8/Materials | Build established: Trapper-Mutant 9308 | -8/Materials | Central database locked down 9380 | -8/Materials | Discovered new exit (range 10) 9399 | -8/Materials | Garrison activated, responded to threat 9471 | -8/Materials | Repaired Imp. Grenade Launcher 9524 | -8/Materials | Identified exit to Garrison 9524 | -8/Materials | Entered Garrison 9618 | -8/Garrison | Triggered checkpoint 9649 | -8/Garrison | Discovered new exit (range 6) 9791 | -8/Garrison | Triggered checkpoint 9818 | -8/Garrison | Lost 3 parts (2n1w) 9827 | -8/Garrison | Destroyed 7 combat bots 9886 | -8/Garrison | Garrison Relay disabled 9900 | -8/Garrison | Triggered checkpoint 9956 | -8/Garrison | Discovered new exit (range 3) 10044 | -8/Garrison | Triggered checkpoint 10047 | -8/Garrison | Core integrity fell below 20% 10143 | -8/Garrison | Expanded RIF knowledge: Watcher Feeds 10163 | -8/Garrison | Discovered new exit (range 5) 10221 | -8/Garrison | Entered Factory 10221 | -7/Factory | Evolved 2 slots: Propulsion x1, Utility x1 10249 | -7/Factory | Discovered new exit (range 5) 10252 | -7/Factory | Identified exit to Lower Caves 10310 | -7/Factory | Sucked down chute 10310 | -7/Factory | Entered Waste 10312 | -7/Waste | Spotted C-40 Crusher 10318 | -7/Waste | Spotted C-40 Crusher 10319 | -7/Waste | Found Unknown Protection 10323 | -7/Waste | Spotted C-40 Crusher 10323 | -7/Waste | Spotted C-40 Crusher 10323 | -7/Waste | Spotted C-40 Crusher 10325 | -7/Waste | EMP discharged 10325 | -7/Waste | Spotted C-40 Crusher 10343 | -7/Waste | Discovered new exit (range 10) 10345 | -7/Waste | Identified exit to Factory 10345 | -7/Waste | Entered Factory 10417 | -7/Factory | Lost 3 allies 10492 | -7/Factory | Discovered new exit (range 8) 10506 | -7/Factory | Identified exit to Storage 10571 | -7/Factory | Repaired Hvy. Mace? 10743 | -7/Factory | Build established: Hacker-Sprinter 10994 | -7/Factory | Noticed a derelict Sapper rigging charges 11079 | -7/Factory | Entered Lower Caves 11129 | -7/Lower Caves | Learned Factory security intel 11138 | -7/Lower Caves | Encountered a Warlord checkpoint 11148 | -7/Lower Caves | Discovered new exit (range 5) 11158 | -7/Lower Caves | Attacked by a delusional Derelict stockpiling parts 11236 | -7/Lower Caves | Entered another Lower Caves area 11237 | -7/Lower Caves | Encountered a Warlord checkpoint 11264 | -7/Lower Caves | Discovered new exit (range 15) 11274 | -7/Lower Caves | Attracted the attention of an 0b10 checkpoint 11523 | -7/Lower Caves | Attacked by a delusional Derelict stockpiling Unaware 11775 | -7/Lower Caves | Learned Factory stockpile data 12037 | -7/Lower Caves | Discovered new exit (range 14) 12043 | -7/Lower Caves | Entered Zion 12060 | -7/Zion | Build established: Trapper-Sprinter 12073 | -7/Zion | Lost 4 allies 12086 | -7/Zion | Discovered new exit (range 8) 16648 | -7/Zion | RIF detected upon attempting to enter Zion 16648 | -7/Zion | Attacked by Zionites 16648 | -7/Zion | Spotted 0W-3OR(B) 16648 | -7/Zion | Spotted M6-PWB(B) 16719 | -7/Zion | Core integrity fell below 50% 16750 | -7/Zion | Core integrity fell below 20% 16756 | -7/Zion | Destroyed by ZQ-TH3(g) with Beamcaster Last Messages --------------- 16735_ Mak. Flight Unit destroyed. 16736_ Discarded Transport Network Coupler. 16737_ Critical hit (Burn: +37). 16738_ CR-A16 destroyed. 16738_ Mak. Spear destroyed. 16739_ Thief Drone released from Thief Drone Bay. 16741_ Thief Drone retrieved by Thief Drone Bay. 16745_ Acquired Lgt. Nuclear Core. 16746_ Imp. VTOL Module destroyed. 16748_ Mak. Light Armor Plating destroyed. 16749_ Acquired Mak. Shrapnel Gun. 16750_ Lgt. Nuclear Core destroyed. 16752_ Imp. VTOL Module destroyed. 16753_ FX-X25(z) destroyed. 16753_ Mak. Shrapnel Gun destroyed. 16754_ CC-4WT(z) destroyed. 16754_ Deep Containment System disabled. 16756_ Relay Coupler [NC] destroyed. Map ----- +----------------------------------------------------+ | ????????????????????????????????????????????????? | | ????????????????????????????????????????????????? | | ????????????????????????????????????????????????? | | ????????????????????????????????????????????????? | | ????????????????????????????????????????????????? | | ????????????????????????????????????????????????? | | ????????????????????????????????????????????????? | | ????????????????????????????????????????????????? | | ????????????????????????????????????????????????? | | ????????????????????????????????????????????????? | | ????????????????????????????????????????????????? | | ????????????????????????????????????????????????? | | ????????????????????????????????????????????????? | | ??????????????????????????"#?"""????????????????? | | ?????????????????????????? "" """"#????????????? | | ??????????????????????????? """""???????????? | | ???????????????????????????? """""??????????? | | ????????????????????????????" ??????????? | | ???????????????????????????#" ?????????? | | ????????????????????????????" """"" ???????? | | ?????????????????????#######"" ""#""" ??????? | | ?????????????????????#"""## ##" "#"#"" ?????? | | ??????????????????????#"""" "" """""""????? | | ??????????????????????" = " """"""????? | | ??????????????????????#= !*! " """#""???? | | ?????????????????????## @zz! =%[ * """""???? | | ?????????????????????" %=% g "##" ??? | | ?????????????????????" zzz z " """" ??? | | ????????????????????## """ ""#" ???? | | ??????????????????#""""" ! """" ""#?????? | | ??????????????????""""#" # """ "" "#"#????? | | ??????????????????############z" """ """#?""???? | | ????????????????????????????#"""z""" """#?"" | | ????????????????????????????#""""""" """##"" | | ???????????????????????????#"" ""#"" | | ???????????????????????????#"" """"" """ | | ?????????????????????????###"" """"" "" | | ?????????????????????????#" " """ "" | | ?????????????????????????? """ "" | | ???????????????????????????# """ | | ??????????????????????????"# """ | | ??????????????????????????"" """ """" | | ??????????????????????????""" """ """ | | ???????????????????????????#"" " "" | | ?????????????????????????????## """ | | ?????????????????????????????#"" | | ?????????????????????????????#" " | | ?????????????????????????????#"" """"""" | | ?????????????????????????????## # "" | | ??????????????????????????????#### """ | +----------------------------------------------------+ Best States ------------- Heat Dissipation 34 Energy Generation 15 Energy Capacity 465 Matter Stores 300 Matter Capacity 300 Sight Range 16 Robot Scan Range 15 Terrain Scan Density 10 Armor Coverage 750 Resistance: KI 20 Propulsion Shielding 66 Utility Shielding 66 Evasion (%) 65 Targeting Accuracy 8 Recoil Reduction 4 Offensive Hacking 34 Defensive Hacking 10 Relay Coupler Types 1 Relay Coupler Value 27 Authchip Count 2 Trap Extractor Capacity 8 Item Schematics ----------------- Hpw. Tractor Beam | -9/Materials | Hacked Transport Network Coupler | -8/Materials | Scanalyzed Plasma Cutter | -8/Materials | Scanalyzed Hacking Suite | -8/Materials | Hacked Imp. Utility Shielding | -8/Materials | Scanalyzed Enh. Autogun | -8/Materials | Scanalyzed Arm. Treads | -8/Materials | Scanalyzed Imp. Datajack | -8/Materials | Scanalyzed Adv. Hacking Suite | -8/Materials | Scanalyzed Nuclear Pulse Array | -8/Materials | Scanalyzed Adv. Trap Extractor | -8/Materials | Scanalyzed Imp. VTOL Module | -8/Materials | Scanalyzed Lrg. Storage Unit | -8/Materials | Scanalyzed Imp. Weapon Shielding | -8/Materials | Hacked Greatsword | -7/Factory | Hacked Core Analyzer | -7/Factory | Scanalyzed Imp. Salvage Targeting Computer | -7/Factory | Scanalyzed Mic. Nuclear Core | -7/Factory | Scanalyzed Imp. Sensor Array | -7/Factory | Scanalyzed Transmission Jammer | -7/Factory | Scanalyzed Imp. Shield Generator | -7/Factory | Hacked Imp. Coolant Injector | -7/Factory | Hacked Robot Schematics ------------------ M-13 Machinist | -10/Materials | Hacked Fabricated ------------ Nothing Alien Tech Used ----------------- None Achievements -------------- None Challenges ------------ None Game ------ Seed TitaniumWaveDetonator Manual? 0 Play Time 03:15:09 Cumulative 725.4 hours Start 2024.05.16 @ 20:31:10 End 2024.05.18 @ 10:46:14 Sessions 3 Manual Loads 0 Difficulty Rogue Special Mode None Game No. 296 Rogue 266 Adventurer 3 Explorer 27 Win Type - Total 16 Types 10/3/1/1/0/1/0/0/0 Lore% 91 Gallery% 96 Achievement% 85 Wizard Run 0 Options --------- Layout 2 ASCII 0 Keyboard 0 Movement Mouse Keybinds 0 Fullscreen 2 Font 24/Smallcaps Map View 50x44 Zoom Use 0% Tactical HUD 1 Map Filters NONE Filters NONE Steam 1 RUN: fe642476-9ba1-4c14-88a6-97f192835cb2